[Event "10th Norway Chess Blitz 2022"]
[Site "Stavanger"]
[Date "2022.05.30"]
[Round "3.3"]
[White "Anand, Viswanathan"]
[Black "Topalov, Veselin"]
[Result "1-0"]
[ECO "B67"]
[WhiteElo "2751"]
[BlackElo "2730"]
[Annotator "TA"]
[PlyCount "81"]
[EventDate "2022.05.30"]
[EventType "tourn"]
[EventCountry "NOR"]
[SourceTitle "playchess.com"]
[Source "ChessBase"]
[SourceQuality "1"]
[TimeControl "180+2"]

{[%evp 18,81,27,19,48,29,33,37,50,37,83,87,84,50,92,66,71,68,85,74,72,42,30,43,53,29,52,55,56,12,29,26,77,63,83,80,187,48,45,46,38,50,49,14,42,39,46,49,87,87,145,46,42,29,29,29,29,29,33,29,36,0,478,465,560,551]} 1. e4 {[%emt 0:00:01]} c5 {[%emt 0:00:02]} 2. Nf3 {[%emt 0:00:01]} d6 {[%emt 0:00:01]} 3. d4 {[%emt 0:00:01]} cxd4 {[%emt 0:00:01]} 4. Nxd4 {[%emt 0:00:01]} Nf6 {[%emt 0:00:02]} 5. Nc3 {[%emt 0:00:01]} Nc6 {[%emt 0:00:01]} 6. Bg5 {[%emt 0:00:01]} e6 {[%emt 0:00:02]} 7. Qd2 {[%emt 0:00:01]} a6 {[%emt 0:00:02]} 8. O-O-O {[%emt 0:00:05]} Bd7 {[%emt 0:00:01] The main line 8...Bd7 scores better than 8...h6.} 9. f3 {[%emt 0:00:06]} Nxd4 {[%emt 0:00:02]} 10. Qxd4 {[%emt 0:00:02]} Be7 {[%emt 0:00:03] B67: Sicilian: Richter-Rauzer: 7...a6 8 0-0-0 Bd7, lines without 9 f4 Be7.} 11. Kb1 {[%emt 0:00:02]} b5 {[%emt 0:00:11]} 12. g4 {[%emt 0:00:07] [#]} h5 $146 {[%emt 0:00:08] White is slightly better.} ({Predecessor:} 12... Qc7 13. h4 h5 14. gxh5 Nxh5 15. Rg1 Nf6 16. Bh3 Rc8 17. Rg2 a5 18. Rgd2 b4 {1-0 (40) Vokhidov,S (2480)-Gabrielian,A (2499) St Petersburg 2018}) 13. gxh5 $1 {[%emt 0:00:04]} Nxh5 {[%emt 0:00:15]} (13... Rxh5 $14 {deserves consideration.} 14. h4 Rb8) 14. Bxe7 $16 {[%emt 0:00:03] 0x0.00226b6d919adp-1022s more active pieces.} Qxe7 {[%emt 0:00:01]} 15. Rg1 {[%emt 0:00:02]} (15. Qxd6 $6 Qxd6 16. Rxd6 Ng3 $11) 15... Bc6 {[%emt 0:00:09]} 16. Qxd6 {[%emt 0:00:16]} Qxd6 {[%emt 0:00:04]} 17. Rxd6 {[%emt 0:00:01]} Rc8 {[%emt 0:00:01]} 18. a4 {[%emt 0:00:11][%cal Ra4b5]} Ke7 {[%emt 0:00:10]} 19. Rd4 {[%emt 0:00:08][%cal Ra4b5]} (19. Rd2 $5 {[%cal Ra4b5]}) 19... Nf4 {[%emt 0:00:24]} 20. axb5 {[%emt 0:00:07]} axb5 {[%emt 0:00:01]} 21. Rd2 {[%emt 0:00:05]} (21. Bxb5 Bxb5 22. Nxb5 Ne2 23. Rxg7 Nxd4 24. Nxd4 Rxh2 $17) (21. Rxg7 Ng6 $11) 21... b4 {[%emt 0:00:04]} 22. Na2 {[%emt 0:00:03]} Rb8 {[%emt 0:00:01]} 23. Bc4 {[%emt 0:00:05]} ({Don't play} 23. Rxg7 Ng6 $15) 23... Ng6 {[%emt 0:00:12]} 24. Rg5 {[%emt 0:00:05] Prevents Ne5.} Rb6 {[%emt 0:00:08]} (24... Ba8 $11) 25. Rc5 {[%emt 0:00:05][%cal Oa2b4]} Kf6 {[%emt 0:00:05]} 26. b3 {[%emt 0:00:10]} Ne5 {[%emt 0:00:12]} (26... Bb7 $16 {is a better defense.}) 27. Rf2 {[%emt 0:00:01]} (27. f4 $1 $18 {[%cal Rf4e5]} Nxc4 28. Rxc4) 27... Rh3 $14 {[%emt 0:00:09]} 28. Be2 {[%emt 0:00:01]} Rh4 $1 {[%emt 0:00:10]} ({Don't do} 28... Nd7 29. Rc4 $16) 29. Kb2 {[%emt 0:00:18]} Rf4 {[%emt 0:00:09][%cal Oc6e4]} 30. Rf1 {[%emt 0:00:12]} g5 {[%emt 0:00:04]} 31. Nc1 {[%emt 0:00:02]} Rh4 {[%emt 0:00:06]} 32. Rf2 {[%emt 0:00:05]} Rf4 {[%emt 0:00:01][%cal Oc6e4] [#]} 33. Rg2 $1 {[%emt 0:00:16]} g4 {[%emt 0:00:21]} (33... Bd7 $142) 34. fxg4 {[%emt 0:00:03]} ({Not} 34. Rxe5 gxf3 35. Bxf3 Rxf3 $11) (34. Rxg4 $16 Nxg4 35. Nd3) 34... Bxe4 {[%emt 0:00:02]} 35. Rg3 {[%emt 0:00:07] Threatens to win with g5+.} Rc6 {[%emt 0:00:02]} 36. Rxc6 {[%emt 0:00:06]} Bxc6 {[%emt 0:00:07]} 37. h4 {[%emt 0:00:01][%cal Bh2h4,Bh4h5,Bh5g6][%mdl 32]} Rf2 {[%emt 0:00:02]} 38. g5+ {[%emt 0:00:11]} Kf5 {[%emt 0:00:01]} 39. h5 {[%emt 0:00:04][%cal Og5g6] aiming for g6!} (39. Re3 $5 {[%cal Re3e5]} Be4 40. Nd3 Nxd3+ 41. Bxd3 Bxd3 42. Rxd3 $14) 39... Kf4 $2 {[%emt 0:00:01][%mdl 8192] [#]} (39... Be4 $1 $11 {and Black stays safe.}) 40. g6 $1 $18 {[%emt 0:00:08] Black must now prevent g7.} fxg6 {[%emt 0:00:05] [#]} (40... Kxg3 $2 41. g7 Kf4 42. g8=Q) (40... Be4 41. g7) 41. hxg6 $1 {[%emt 0:00:01] Weighted Error Value: White=0.16 (very precise) /Black=0.46} 1-0

[Event "10th Norway Chess Blitz 2022"]
[Site "Stavanger"]
[Date "2022.05.30"]
[Round "3.5"]
[White "Vachier-Lagrave, Maxime"]
[Black "Tari, Aryan"]
[Result "0-1"]
[ECO "A34"]
[WhiteElo "2750"]
[BlackElo "2654"]
[Annotator "TA"]
[PlyCount "76"]
[EventDate "2022.05.30"]
[EventType "tourn"]
[EventCountry "NOR"]
[SourceTitle "playchess.com"]
[Source "ChessBase"]
[SourceQuality "1"]
[TimeControl "180+2"]

{[%evp 10,76,8,12,33,9,12,12,16,19,14,0,0,6,10,12,15,0,0,0,0,0,0,-41,-27,-48,-25,-57,-53,-61,-56,-61,-50,-149,-140,-146,-151,-245,-235,-222,-193,-356,-341,-401,-315,-337,-341,-594,-377,-345,-316,-567,-544,-947,-648,-635,-620,-557,-449,-927,-896,-791,-781,-1481,-1470,-2134,-1222,-1146,-1144]} 1. Nf3 {[%emt 0:00:02]} Nf6 {[%emt 0:00:06]} 2. g3 {[%emt 0:00:01]} c5 {[%emt 0:00:02]} 3. Bg2 {[%emt 0:00:01]} Nc6 {[%emt 0:00:01]} 4. c4 {[%emt 0:00:05]} d5 {[%emt 0:00:07]} 5. cxd5 {[%emt 0:00:02]} Nxd5 {[%emt 0:00:01]} 6. Nc3 {[%emt 0:00:07]} Nxc3 {[%emt 0:00:02] A34: Symmetrical English: 2 Nc3, lines with ...d5.} 7. dxc3 {[%emt 0:00:10]} Qxd1+ {[%emt 0:00:12]} 8. Kxd1 {[%emt 0:00:02]} Bf5 {[%emt 0:00:01] [#] The position is equal.} 9. Nd2 $146 {[%emt 0:00:15]} ({Predecessor:} 9. Be3 e5 10. Kc1 Rc8 11. Rd1 Be7 12. Ng5 Bxg5 13. Bxg5 f6 14. Be3 b6 15. Kd2 Ke7 16. Ke1 Rhd8 17. Bxc6 {½-½ (17) Buenafe Moya,J (2231)-Sion Castro,M (2420) Barcelona 2000}) 9... O-O-O {[%emt 0:00:15]} 10. e4 {[%emt 0:00:05]} Be6 {[%emt 0:00:30]} 11. Kc2 {[%emt 0:00:43]} g6 {[%emt 0:00:26]} 12. Nf3 {[%emt 0:00:09] White wants to play Ng5.} f6 {[%emt 0:00:06] Prevents Ng5.} 13. Be3 {[%emt 0:00:02]} b6 {[%emt 0:00:02]} 14. h4 {[%emt 0:00:12]} h5 {[%emt 0:00:03]} 15. Nd2 {[%emt 0:00:26]} Ne5 {[%emt 0:00:07]} 16. f4 {[%emt 0:00:02]} Ng4 {[%emt 0:00:11]} 17. Rhe1 {[%emt 0:00:03]} Bh6 {[%emt 0:00:13][%cal Og6g5]} 18. Bg1 {[%emt 0:00:06]} Bf7 {[%emt 0:00:10]} 19. a4 {[%emt 0:00:22]} e5 {[%emt 0:00:03][%cal Be7e5,Be5f4][%mdl 32]} 20. a5 $1 {[%emt 0:00:02]} Kb7 $36 {[%emt 0:00:13][%mdl 2048] Black has good play.} 21. Rf1 {[%emt 0:00:33] [#] Black keeps a firm grip on the game.} (21. Ra3 $15) 21... Rd7 $1 $17 {[%emt 0:00:01] Black is more active.} 22. axb6 {[%emt 0:00:01]} axb6 {[%emt 0:00:01]} 23. b3 {[%emt 0:00:14] [#]} (23. Rfe1 $17 {was called for.}) 23... Rhd8 $1 $19 {[%emt 0:00:01]} 24. Nf3 {[%emt 0:00:02]} (24. Nc4 $2 Bxc4 25. bxc4 Rd2+ 26. Kb3 Rxg2 $19) 24... exf4 {[%emt 0:00:10]} 25. e5 $2 {[%emt 0:00:02]} (25. gxf4 {is the only way for White.} Bxf4 26. e5) 25... Bd5 {[%emt 0:00:01] Strongly threatening ...Be4+.} ({Don't blunder} 25... fxg3 $2 26. c4 Kb8 27. Ra6 Rd2+ 28. Nxd2 Rxd2+ 29. Kb1 Rxg2 30. Rxb6+ Kc7 31. Ra6 Nxe5 32. Bxc5 Nxc4 33. bxc4 Bxc4 34. Rfxf6 Bd3+ 35. Ka1 Bxa6 36. Rxg6 $19) 26. Rae1 {[%emt 0:00:02] Prevents Be4+.} f5 {[%emt 0:00:05]} ({Don't go for} 26... fxg3 $2 27. exf6 Nxf6 28. Be3 Be4+ 29. Kb2 Bxe3 30. Rxe3 $19) 27. e6 {[%emt 0:00:01]} Re7 {[%emt 0:00:02]} 28. Kb2 $2 {[%emt 0:00:03]} (28. gxf4 Rd6 29. c4) 28... Be4 {[%emt 0:00:17]} 29. gxf4 {[%emt 0:00:02]} Bxf4 {[%emt 0:00:01]} 30. Ng5 $2 {[%emt 0:00:01]} (30. Rxe4 {might work better.} fxe4 31. Nd4) 30... Rd2+ {[%emt 0:00:01] Black is clearly winning.} ({Inferior is} 30... Bxg2 31. Rxf4 Rd2+ 32. Kc1 $17) 31. Ka3 {[%emt 0:00:01]} Bxg5 {[%emt 0:00:25]} 32. Bxe4+ {[%emt 0:00:01]} fxe4 {[%emt 0:00:01]} 33. hxg5 {[%emt 0:00:01]} Kc6 {[%emt 0:00:01][%cal Re7a7]} 34. Rf7 {[%emt 0:00:01]} (34. Rxe4 $142 b5 35. Rf7) 34... Rxe6 {[%emt 0:00:02] ...e3 is the strong threat.} 35. b4 {[%emt 0:00:01]} cxb4+ {[%emt 0:00:04]} 36. cxb4 {[%emt 0:00:01]} Kb5 {[%emt 0:00:01] Hoping for ...Red6.} 37. Rc1 {[%emt 0:00:06]} Rd3+ {[%emt 0:00:01]} 38. Kb2 {[%emt 0:00:01]} e3 {[%emt 0:00:01] Weighted Error Value: White=0.91/Black=0.38} 0-1

[Event "10th Norway Chess Blitz 2022"]
[Site "Stavanger"]
[Date "2022.05.30"]
[Round "4.1"]
[White "Carlsen, Magnus"]
[Black "Tari, Aryan"]
[Result "1-0"]
[ECO "A45"]
[WhiteElo "2864"]
[BlackElo "2654"]
[Annotator "TA"]
[PlyCount "49"]
[EventDate "2022.05.30"]
[EventType "tourn"]
[EventCountry "NOR"]
[SourceTitle "playchess.com"]
[Source "ChessBase"]
[SourceQuality "1"]
[TimeControl "180+2"]

{[%evp 9,49,5,10,8,17,17,14,17,13,-5,53,53,52,47,47,24,24,26,41,36,56,43,47,44,46,44,44,44,44,45,45,43,45,37,91,75,151,137,637,625,609,595]} 1. d4 {[%emt 0:00:01]} Nf6 {[%emt 0:00:01]} 2. Bg5 {[%emt 0:00:03]} d5 {[%emt 0:00:07]} 3. c3 {[%emt 0:00:03]} Ne4 {[%emt 0:00:14]} 4. Bf4 {[%emt 0:00:07]} c5 {[%emt 0:00:02]} 5. e3 {[%emt 0:00:02]} Nc6 {[%emt 0:00:02] Threatens to win with ...cxd4.} 6. Nd2 {[%emt 0:00:05] A45: Trompowsky Attack.} Bf5 {[%emt 0:00:05]} 7. Ngf3 {[%emt 0:00:25]} Nxd2 {[%emt 0:00:10]} 8. Qxd2 {[%emt 0:00:21] The position is equal.} e6 {[%emt 0:00:01]} 9. Bb5 $5 {[%emt 0:00:06][%mdl 4] An interesting side line.} Be7 {[%emt 0:00:32] [#]} ({Black should play} 9... f6 $11) 10. dxc5 $146 {[%emt 0:00:03]} ({Predecessor:} 10. O-O O-O 11. dxc5 Bxc5 12. Nd4 Nxd4 13. cxd4 Bd6 14. Bxd6 Qxd6 15. Bd3 Bxd3 16. Qxd3 {0-1 (60) Karas,M (2246)-Shahinyan,D (2429) Chess.com INT 2019}) 10... Bxc5 {[%emt 0:00:21]} 11. Nd4 {[%emt 0:00:01]} Bxd4 {[%emt 0:00:03]} 12. Bxc6+ {[%emt 0:00:09]} bxc6 {[%emt 0:00:02]} 13. cxd4 {[%emt 0:00:01]} Qb6 {[%emt 0:00:26]} 14. Bd6 {[%emt 0:00:14]} Qa6 {[%emt 0:00:04]} 15. f3 {[%emt 0:00:02]} f6 {[%emt 0:00:09]} 16. Kf2 $36 {[%emt 0:00:02][%mdl 2048] White has the initiative.} Kf7 {[%emt 0:00:00]} 17. Rhc1 {[%emt 0:00:01][%cal Bh1c1,Bc1c5,Bc5a5][%mdl 32]} Rhd8 {[%emt 0:00:18]} 18. Bg3 {[%emt 0:00:09]} Qb6 {[%emt 0:00:13]} 19. Rc5 {[%emt 0:00:04]} a5 {[%emt 0:00:01]} 20. Rac1 {[%emt 0:00:02]} Rdc8 {[%emt 0:00:01]} 21. b3 {[%emt 0:00:04][%cal Bb2b3,Bb3b4][%mdl 32]} Qa6 {[%emt 0:00:12]} (21... Qb4 $14 22. Ke1 Ra6) 22. Qc3 $16 {[%emt 0:00:02] White is more active.} a4 {[%emt 0:00:06]} ({Better is} 22... Ra7) 23. b4 {[%emt 0:00:02]} ({Worse is} 23. Rxc6 Rxc6 24. Qxc6 Qxc6 25. Rxc6 axb3 26. axb3 Ra2+ 27. Kg1 Ra1+ 28. Kf2 Ra2+ 29. Kg1 Ra1+ 30. Kf2 Ra2+ $11) 23... Bd3 $2 {[%emt 0:00:02][%mdl 8192] [#] Prevents b5.} (23... Qd3 $16 24. b5 (24. Rxc6 Rxc6 25. Qxc6 Kg6 $16) 24... Qxc3 25. R5xc3 e5) 24. Ra5 $1 $18 {[%emt 0:00:03]} Qc4 {[%emt 0:00:19]} 25. Qd2 {[%emt 0:00:01] Weighted Error Value: White=0.03 (flawless) /Black=0.51} 1-0

[Event "10th Norway Chess Blitz 2022"]
[Site "Stavanger"]
[Date "2022.05.30"]
[Round "4.2"]
[White "So, Wesley"]
[Black "Vachier-Lagrave, Maxime"]
[Result "1-0"]
[ECO "D78"]
[WhiteElo "2766"]
[BlackElo "2750"]
[Annotator "TA"]
[PlyCount "95"]
[EventDate "2022.05.30"]
[EventType "tourn"]
[EventCountry "NOR"]
[SourceTitle "playchess.com"]
[Source "ChessBase"]
[SourceQuality "1"]
[TimeControl "180+2"]

{[%evp 14,95,27,31,45,34,41,45,39,43,68,57,67,54,66,67,68,64,63,72,58,62,109,36,32,48,90,58,161,173,152,156,491,325,337,325,336,343,343,345,347,335,332,353,345,326,307,316,327,243,217,237,233,235,229,110,106,14,59,8,35,0,66,56,83,85,85,53,216,212,206,207,280,280,280,280,504,497,683,676,5414,5414,29974,11408]} 1. Nf3 {[%emt 0:00:02]} d5 {[%emt 0:00:01]} 2. g3 {[%emt 0:00:01]} g6 {[%emt 0:00:04]} 3. Bg2 {[%emt 0:00:01]} Bg7 {[%emt 0:00:01]} 4. O-O {[%emt 0:00:02]} Nf6 {[%emt 0:00:01]} 5. c4 {[%emt 0:00:06]} c6 {[%emt 0:00:02]} 6. b3 {[%emt 0:00:01]} Bg4 {[%emt 0:00:18] 6...0-0 is becoming the main line.} 7. Bb2 {[%emt 0:00:03]} O-O {[%emt 0:00:04]} 8. d4 {[%emt 0:00:10]} Bxf3 {[%emt 0:00:13] D78: Fianchetto Grünfeld: 6 0-0 c6.} 9. Bxf3 {[%emt 0:00:02]} a5 {[%emt 0:00:02]} 10. Nc3 {[%emt 0:00:06]} e6 {[%emt 0:00:07] White is slightly better.} 11. e3 {[%emt 0:00:05] [#]} Na6 $146 {[%emt 0:00:02]} ({Predecessor:} 11... Nbd7 12. Qc2 Qe7 13. Rfd1 Rac8 14. Rac1 Rfe8 15. Kg2 h5 16. h3 h4 17. g4 dxc4 18. bxc4 {1-0 (28) Meier,G (2621)-Stein,R (2325) Magdeburg 2020}) 12. Qe2 {[%emt 0:00:04]} Rb8 {[%emt 0:00:06]} 13. Rac1 {[%emt 0:00:05] White is more active.} Qd7 {[%emt 0:00:09]} 14. c5 {[%emt 0:00:15]} Qe7 {[%emt 0:00:51]} 15. Bg2 {[%emt 0:00:01]} e5 {[%emt 0:00:06]} 16. dxe5 {[%emt 0:00:02]} Nd7 {[%emt 0:00:01]} 17. f4 {[%emt 0:00:03]} Ndxc5 {[%emt 0:00:09]} (17... Naxc5 $14 18. e4 d4) 18. e4 {[%emt 0:00:28]} (18. Ba3 $1 $16 {Black must now prevent Na4.} b5 19. Na4 $1) 18... d4 $14 {[%emt 0:00:04]} 19. Nd1 {[%emt 0:00:05]} Rbd8 {[%emt 0:00:27]} 20. Nf2 {[%emt 0:00:05]} Rd7 {[%emt 0:00:01]} (20... Nb4 $14) 21. Bh3 $36 {[%emt 0:00:03][%mdl 2048] White is in control.} Rdd8 {[%emt 0:00:14]} 22. Rfd1 {[%emt 0:00:01]} g5 $2 {[%emt 0:00:09]} (22... d3 $16 23. Qe3 (23. Nxd3 Nxd3 24. Rxd3 Rxd3 $16) 23... Ne6 24. Rxd3 (24. Nxd3 Nb4 $18) 24... Rxd3 25. Nxd3 Rd8) 23. Bxd4 {[%emt 0:00:09]} gxf4 {[%emt 0:00:02]} 24. gxf4 {[%emt 0:00:02]} Ne6 {[%emt 0:00:01]} 25. Be3 {[%emt 0:00:06]} Qh4 {[%emt 0:00:14]} 26. Qg4 {[%emt 0:00:06]} Qxg4+ {[%emt 0:00:04]} 27. Nxg4 {[%emt 0:00:13]} ({Less strong is} 27. Bxg4 Bh6 $16) 27... Rxd1+ {[%emt 0:00:02]} 28. Rxd1 {[%emt 0:00:01]} Rd8 {[%emt 0:00:00]} 29. Rxd8+ Nxd8 {[%emt 0:00:01]} 30. Bf1 {[%emt 0:00:32]} Nb4 {[%emt 0:00:07]} 31. a4 {[%emt 0:00:06]} Nc2 {[%emt 0:00:07]} 32. Bd2 {[%emt 0:00:08]} Ne6 {[%emt 0:00:10] [#]} 33. Bc4 $1 {[%emt 0:00:02]} ({Don't do} 33. Bxa5 $6 Nxf4 34. Nf6+ Bxf6 35. exf6 Nd4) 33... b6 {[%emt 0:00:05]} 34. Kf2 {[%emt 0:00:23]} (34. Nf6+ $18 {and White stays clearly on top.} Bxf6 35. exf6) 34... Nc5 $16 {[%emt 0:00:00] [#]} 35. Ke2 {[%emt 0:00:22]} (35. Kg2 $1 $16) 35... Nd4+ {[%emt 0:00:02]} (35... Nxb3 $5 36. Bxb3 Nd4+ 37. Kd3 Nxb3 $14) 36. Ke3 {[%emt 0:00:02]} (36. Kd1 $14) 36... Nc2+ {[%emt 0:00:01] Pair of Knights!} 37. Ke2 {[%emt 0:00:05]} Nd4+ {[%emt 0:00:01]} 38. Kd1 {[%emt 0:00:01] Be3 is the strong threat.} b5 {[%emt 0:00:06]} 39. axb5 {[%emt 0:00:01]} cxb5 {[%emt 0:00:00]} 40. Bd5 {[%emt 0:00:01] Hoping for b4.} Ndxb3 {[%emt 0:00:03]} (40... Ncxb3 $14 41. Be1 Kf8) 41. Be3 $18 {[%emt 0:00:01]} a4 {[%emt 0:00:00]} 42. Kc2 {[%emt 0:00:01]} h5 {[%emt 0:00:02]} 43. Nf6+ {[%emt 0:00:01]} Bxf6 {[%emt 0:00:01]} 44. exf6 {[%emt 0:00:01]} Nd7 $2 {[%emt 0:00:06]} (44... Na6 45. Bxb3 Nb4+ 46. Kc3 axb3 47. Kxb3 (47. Kxb4 $2 b2 $19) 47... Nd3) 45. e5 {[%emt 0:00:02][%cal Be4e5,Be5e6,Be6f7][%mdl 32]} Nbc5 {[%emt 0:00:01]} 46. f5 {[%emt 0:00:03]} b4 {[%emt 0:00:02]} 47. e6 {[%emt 0:00:02]} Nxf6 {[%emt 0:00:01]} 48. exf7+ {[%emt 0:00:02] Weighted Error Value: White=0.18 (very precise) /Black=0.57} 1-0

[Event "10th Norway Chess Blitz 2022"]
[Site "Stavanger"]
[Date "2022.05.30"]
[Round "4.3"]
[White "Topalov, Veselin"]
[Black "Mamedyarov, Shakhriyar"]
[Result "0-1"]
[ECO "A20"]
[WhiteElo "2730"]
[BlackElo "2770"]
[Annotator "TA"]
[PlyCount "82"]
[EventDate "2022.05.30"]
[EventType "tourn"]
[EventCountry "NOR"]
[SourceTitle "playchess.com"]
[Source "ChessBase"]
[SourceQuality "1"]
[TimeControl "180+2"]

{[%evp 9,82,8,0,21,19,22,25,2,2,-2,-7,-4,-8,-18,11,-12,22,15,21,22,30,37,108,122,107,38,74,75,90,88,85,89,135,132,116,94,97,96,81,88,151,129,338,154,149,154,191,-29,-29,-29,-36,-155,0,-123,-265,-288,-316,-310,-308,-318,-278,-298,-220,-412,-414,-402,-335,-327,-309,-408,-401,-412,-423,-411,-406]} 1. c4 {[%emt 0:00:01]} e5 {[%emt 0:00:01]} 2. b3 {[%emt 0:00:01]} g6 {[%emt 0:00:09]} 3. Bb2 {[%emt 0:00:02]} Bg7 {[%emt 0:00:01]} 4. Nf3 {[%emt 0:00:02]} Nc6 {[%emt 0:00:02]} 5. e3 {[%emt 0:00:01]} d6 {[%emt 0:00:08]} 6. Be2 {[%emt 0:00:03] A20: English Opening: 1...e5.} f5 {[%emt 0:00:09]} 7. d4 {[%emt 0:00:17]} e4 {[%emt 0:00:02]} 8. Nfd2 {[%emt 0:00:01] White has an edge.} Nf6 {[%emt 0:00:01]} 9. a3 {[%emt 0:00:06]} O-O {[%emt 0:00:03]} 10. Nc3 {[%emt 0:00:01]} Ne7 {[%emt 0:00:12]} 11. d5 {[%emt 0:00:02]} c5 {[%emt 0:00:13]} (11... c6 $5 {[%cal Rc6d5]}) 12. dxc6 {[%emt 0:00:02]} bxc6 {[%emt 0:00:01][%cal Of5f4]} 13. b4 {[%emt 0:00:04]} g5 {[%emt 0:00:09]} 14. Nb3 {[%emt 0:00:08] [#]} f4 $146 {[%emt 0:00:03]} ({Predecessor:} 14... Ng6 15. Qd2 Ne5 16. Rd1 Be6 17. Nd4 Bxc4 18. Nxc6 Qc7 19. Qxd6 Qxd6 20. Rxd6 Nfg4 21. Nxe5 Nxe5 {½-½ (41) Kanovsky,D (2497)-Verkasalo,T (2127) Prague 2011}) 15. Qd2 {[%emt 0:00:06]} Kh8 {[%emt 0:00:09]} (15... Ng6 $14) 16. O-O-O $16 {[%emt 0:00:08]} d5 {[%emt 0:00:00]} 17. Na4 {[%emt 0:00:19]} (17. h4 $16 fxe3 18. fxe3) 17... Nf5 {[%emt 0:00:21]} 18. g4 {[%emt 0:00:04]} (18. exf4 gxf4 19. Qc2 (19. Qxf4 $2 Bh6 $19) 19... e3 $11) 18... fxe3 {[%emt 0:00:08]} 19. fxe3 {[%emt 0:00:01]} Nh4 {[%emt 0:00:15]} 20. h3 {[%emt 0:00:01]} Qe8 {[%emt 0:00:09]} (20... Be6 $142) 21. Qc2 {[%emt 0:00:04]} Be6 {[%emt 0:00:05]} 22. Nac5 {[%emt 0:00:07]} Bg8 {[%emt 0:00:02]} 23. Na5 {[%emt 0:00:01]} Rc8 {[%emt 0:00:10]} 24. Rhf1 {[%emt 0:00:06]} Qg6 {[%emt 0:00:02]} ({Black should try} 24... Qe7) 25. Kb1 {[%emt 0:00:09]} dxc4 $2 {[%emt 0:00:10]} (25... Ng2 $16 {might work better.}) 26. Nxc4 {[%emt 0:00:05]} ({Weaker is} 26. Bxc4 Nd5 27. Rxf8 (27. Nxe4 $2 Rxf1 28. Rxf1 Nxe3 $19) (27. Qxe4 Bxb2 28. Bxd5 Rxf1 $11) 27... Rxf8 $14) (26. Nd7 $18 {and the rest is easy.}) 26... Nd5 {[%emt 0:00:03]} 27. Nxe4 {[%emt 0:00:27]} Ng2 {[%emt 0:00:05]} 28. Ned6 $2 {[%emt 0:00:25]} (28. Ne5 $18 Qh6 29. Qc5 (29. Rxf8 Rxf8 30. Qxc6 Qxc6 $16)) 28... Qxc2+ $11 {[%emt 0:00:03]} 29. Kxc2 {[%emt 0:00:01]} Ndxe3+ {[%emt 0:00:04]} 30. Kb1 {[%emt 0:00:02]} (30. Nxe3 $15 Nxe3+ 31. Kb1 Bxb2 32. Nxc8 Nxf1 33. Rxf1 Rxf1+ 34. Bxf1 Bxa3 35. Nxa7) 30... Nxd1 $2 {[%emt 0:00:22]} (30... Nxf1 $17 31. Bxf1 {[#]} Rcd8 $1 32. Bxg2 Bxc4 33. Bxc6 Bxb2 34. Kxb2 Kg8) 31. Bxg7+ $4 {[%mdl 8192]} (31. Nxc8 $11 {and White has nothing to worry.} Rxc8 32. Rxd1) 31... Kxg7 $19 {[%emt 0:00:01]} 32. Rxd1 {[%emt 0:00:07]} Rcd8 {[%emt 0:00:05]} 33. Nf5+ {[%emt 0:00:13]} Kh8 {[%emt 0:00:01]} 34. Ncd6 {[%emt 0:00:01]} Nf4 {[%emt 0:00:03][%csl LRe2,LRh3]} 35. Bf1 {[%emt 0:00:01]} Nd5 {[%emt 0:00:04]} 36. Kb2 {[%emt 0:00:02] [#] Inhibits Nc3.} (36. Re1) 36... Rxd6 $1 {[%emt 0:00:06][%mdl 512]} 37. Nxd6 {[%emt 0:00:04]} Ne3 {[%emt 0:00:01][%csl LRd1,LRf1] Against Nf5} 38. Re1 {[%emt 0:00:11]} Nxf1 {[%emt 0:00:05]} 39. Nf5 {[%emt 0:00:02]} Nd2 {[%emt 0:00:02]} 40. Kc3 {[%emt 0:00:01]} Nc4 {[%emt 0:00:04]} 41. a4 {[%emt 0:00:04]} Nb6 {[%emt 0:00:01] Weighted Error Value: White=0.41/Black=0.21 (precise)} 0-1